bitfinex/quotes_ETHUSD_20241119
["timestamp","ask_amount","ask_price","bid_price","bid_amount"]
[1732020765707,0.05358017,3137.4,3137.3,0.0077442]
[1732020766190,3.187,3137.8,3137.4,0.796]
[1732020766349,0.8296,3137.9,3137.4,0.796]
[1732020766755,3.18689,3137.9,3137.4,0.796]
[1732020767305,3.18696,3137.8,3137.4,0.796]
[1732020767504,6.37399,3137.8,3137.4,0.796]
[1732020767739,3.18696,3137.8,3137.4,1.19511342]
[1732020768145,3.18687,3137.9,3137.5,0.55]
[1732020768334,3.18687,3137.9,3137.5,1.04402076]
[1732020768933,3.18703,3137.8,3137.5,0.55]
[1732020769142,3.18698,3137.8,3137.3,0.0077442]
[1732020769860,3.18698,3137.8,3137.4,0.55]
[1732020770636,3.18698,3137.8,3137.3,0.0077442]
[1732020770832,3.18715,3137.6,3137.3,0.0077442]
[1732020771046,0.7909,3137.6,3137.3,0.0077442]
[1732020771360,3.97814,3137.6,3137.3,0.0077442]
[1732020771653,3.18728,3137.5,3137.3,0.0077442]
[1732020772920,3.18735,3137.4,3137.3,0.0077442]
[1732020773540,3.903903,3137.4,3137.3,0.0077442]
[1732020773945,3.95748953,3137.4,3137.3,0.0077442]
[1732020774949,3.24093653,3137.4,3137.3,0.0077442]
[1732020775965,0.05358653,3137.4,3137.3,0.0077442]
[1732020776866,0.05257056,3137.4,3137.3,0.0077442]
[1732020777021,3.23992056,3137.4,3137.3,0.0077442]
[1732020777486,0.05257056,3137.4,3137.3,0.0077442]
[1732020777761,3.23992056,3137.4,3137.3,0.0077442]
[1732020777932,3.88264162,3137.4,3137.3,0.0077442]
[1732020779756,0.05257056,3137.4,3137.3,0.0077442]
[1732020779924,3.18724,3137.6,3137.3,0.0077442]
[1732020780321,0.05258063,3137.5,3137.3,0.0077442]
[1732020780536,3.23987063,3137.5,3137.3,0.0077442]
[1732020781467,0.05258063,3137.5,3137.3,0.0077442]
[1732020781827,3.1873,3137.5,3137.3,0.0077442]
[1732020782060,3.23991686,3137.4,3137.3,0.0077442]
[1732020784487,3.99921686,3137.4,3137.3,0.0077442]
[1732020785967,5.31614305,3137.4,3137.3,0.0077442]
[1732020790709,4.55684305,3137.4,3137.3,0.0077442]
[1732020796483,6.69016924,3137.4,3137.3,0.0077442]
[1732020796687,7.67791616,3137.4,3137.3,0.0077442]
[1732020798344,10.67791616,3137.4,3137.3,0.0077442]
[1732020800749,10.68791616,3137.4,3137.3,0.0077442]
[1732020801744,11.33978926,3137.4,3137.3,0.0077442]
[1732020801930,11.32978926,3137.4,3137.3,0.0077442]
[1732020806237,11.41918456,3137.4,3137.3,0.0077442]
[1732020807745,11.42918456,3137.4,3137.3,0.0077442]
[1732020808852,11.41918456,3137.4,3137.3,0.0077442]
[1732020810028,10.67791616,3137.4,3137.3,0.0077442]
[1732020811458,7.67791616,3137.4,3137.3,0.0077442]
[1732020815169,7.68791616,3137.4,3137.3,0.0077442]
[1732020815377,7.68791616,3137.4,3137.3,4.2e-06]
[1732020815544,3.18867,3136.1,3136.0,0.8044]
[1732020815892,4.55534428,3136.1,3136.0,0.8044]
[1732020817890,3.23841809,3136.1,3136.0,0.8044]
[1732020818035,0.04974809,3136.1,3136.0,0.8044]
[1732020818235,3.18857,3136.3,3136.0,0.8044]
[1732020818471,0.04972072,3136.2,3136.0,0.8044]
[1732020818671,3.18857,3136.3,3136.0,0.8044]
[1732020818972,0.04970693,3136.1,3136.0,0.8044]
[1732020819174,3.18855,3136.3,3136.0,0.8044]
[1732020819380,0.04970693,3136.1,3136.0,0.8044]
[1732020819535,3.18839,3136.4,3136.0,0.8044]
[1732020819743,0.04970693,3136.1,3136.0,0.8044]
[1732020819956,4.50520619,3136.5,3136.0,0.399326]
[1732020820158,4.50520619,3136.5,3136.1,0.8187]
[1732020820754,1.31692619,3136.5,3136.1,0.8187]
[1732020820952,3.18885,3136.0,3135.5,0.7922]
[1732020821181,1.31692619,3136.0,3135.5,0.7922]
[1732020821339,4.50576619,3136.0,3135.5,0.7922]
[1732020821545,4.50549619,3136.2,3135.8,0.7922]
[1732020822054,3.18868,3136.1,3135.8,0.7922]
[1732020822381,3.18877,3136.0,3135.8,0.7922]
[1732020823096,3.18857,3136.2,3135.8,0.7922]
[1732020823273,3.18877,3136.0,3135.8,0.7922]
[1732020824375,3.18857,3136.2,3135.8,0.7922]
[1732020824578,3.18848,3136.3,3135.8,0.7922]
[1732020824785,3.18868,3136.1,3135.8,0.7922]
[1732020825157,6.37652,3136.5,3135.8,0.7922]
[1732020825504,3.18887,3135.9,3135.8,0.7922]
[1732020826301,3.18877,3136.0,3135.2,0.8287]
[1732020826605,3.18943,3135.4,3135.2,0.8287]
[1732020826775,3.18929,3135.5,3135.2,0.8287]
[1732020826979,3.18946,3135.4,3135.2,0.8287]
[1732020827212,3.18948,3135.3,3135.2,0.8287]
[1732020831392,3.827424,3135.3,3134.4,0.7814]
[1732020831595,3.19006,3134.8,3134.4,0.7814]
[1732020832466,3.18983,3135.0,3134.4,0.7814]
[1732020832662,3.18983,3135.0,3134.4,3.25414021]
[1732020832867,3.18983,3135.0,3134.5,0.7814]
[1732020833114,3.19002,3134.8,3134.5,0.7814]
[1732020833285,3.19019,3134.6,3134.5,0.7814]
[1732020834012,3.23959339,3134.6,3134.5,0.7814]
[1732020835314,3.23959339,3134.6,3134.3,0.7805]
[1732020835468,3.1904,3134.4,3134.3,0.7805]
[1732020835667,3.23976312,3134.4,3134.3,0.7805]
[1732020836066,3.23976312,3134.4,3134.2,0.1415569]
[1732020836067,3.1905,3134.3,3134.2,0.1415569]
[1732020836308,0.8233,3134.8,3134.2,0.1415569]
[1732020836489,3.18975,3135.1,3134.6,4.01588]
[1732020836812,3.18975,3135.1,3134.8,0.8257]
[1732020836813,3.18969,3135.1,3134.8,0.8257]
[1732020837110,3.18981,3135.0,3134.8,1.02242514]
[1732020837274,3.19012,3134.7,3134.4,0.8257]
[1732020840110,3.18962,3135.2,3134.6,0.7562]
[1732020840280,3.18962,3135.2,3134.6,1.1910059]
[1732020841065,3.18962,3135.2,3134.6,4.3811959]
[1732020842317,3.18928,3135.6,3135.1,0.8083]
[1732020842611,6.28214504,3136.2,3135.1,0.8083]
[1732020842835,3.1889,3135.9,3135.2,0.8083]
[1732020843011,3.1892,3135.6,3135.2,0.8083]
[1732020843171,3.18908,3135.7,3135.2,0.8083]
[1732020844183,3.09356504,3135.9,3135.2,0.8083]
[1732020844410,3.18941,3135.4,3135.2,0.8083]
[1732020844614,6.28247504,3135.9,3135.2,0.8083]
[1732020844925,3.1895,3135.3,3134.9,0.8068]
[1732020845428,3.1893,3135.5,3134.9,0.8068]
[1732020845574,3.1893,3135.5,3134.9,3.99667]
[1732020845995,6.37868,3135.5,3134.9,3.99667]
[1732020846196,3.1893,3135.5,3134.9,3.99667]
[1732020846409,3.18912,3135.7,3135.0,3.18977]
[1732020846579,3.18918,3135.6,3135.1,0.7539]
[1732020846781,3.18912,3135.7,3135.1,3.94349]
[1732020847013,3.18899,3135.8,3135.2,3.18953]
[1732020847217,3.1893,3135.5,3135.1,0.7539]
[1732020847877,3.18908,3135.7,3135.1,0.7539]
[1732020848080,3.18908,3135.7,3135.1,3.94353]
[1732020848281,3.18891,3135.9,3135.3,0.764]
[1732020848518,3.18891,3135.9,3135.3,3.95346]
[1732020848813,3.18899,3135.8,3135.3,3.95346]
[1732020849109,3.23690948,3135.8,3135.3,0.764]
[1732020849430,1.49470143,3135.8,3135.3,0.764]
[1732020849575,0.04791948,3135.8,3135.4,3.18931]
[1732020849978,3.18888,3135.9,3135.4,3.18931]
[1732020850290,0.04793161,3135.8,3135.3,3.95347]
[1732020850702,0.04793161,3135.8,3135.3,0.764]
[1732020850927,3.18916,3135.7,3135.3,0.764]
[1732020851092,3.18931,3135.5,3135.3,0.764]
[1732020851300,0.04787645,3135.4,3135.0,0.8151]
[1732020851526,3.18986,3135.0,3134.5,0.765]
[1732020851896,0.04780748,3134.9,3134.7,3.19003]
[1732020852214,0.04780748,3134.9,3134.8,3.94639]
[1732020852418,3.18942,3135.4,3134.9,3.18987]
[1732020852619,3.85036504,3135.8,3134.8,0.7564]
[1732020852620,3.1897,3135.1,3134.8,0.7564]
[1732020852831,3.18989,3134.9,3134.8,0.7564]
[1732020853039,3.19001,3134.8,3134.3,0.7815]
[1732020853396,3.19001,3134.8,3134.3,3.97194]
[1732020853592,3.18974,3135.1,3134.3,3.97194]
[1732020853593,3.18974,3135.1,3134.3,0.7815]
[1732020853856,3.18995,3134.9,3134.3,3.97199]
[1732020854007,3.18974,3135.1,3134.4,3.94191]
[1732020854214,3.1898,3135.0,3134.4,3.94191]
[1732020854393,3.18974,3135.1,3134.5,3.19029]
[1732020854901,3.18974,3135.1,3134.6,3.19019]
[1732020855110,3.18981,3135.0,3134.4,4.35025669]
[1732020855293,3.19,3134.8,3134.4,0.7516]
[1732020855739,3.18985,3135.0,3134.4,0.7516]
[1732020855894,3.18995,3134.9,3134.4,0.7516]
[1732020856412,3.508835,3135.0,3134.4,3.94192]
[1732020856614,3.18989,3134.9,3134.4,0.7516]
[1732020856798,7.05377504,3135.5,3134.4,3.94199]
[1732020856998,3.18987,3135.0,3134.4,3.94199]
[1732020857211,3.18987,3135.0,3134.4,3.94193]
[1732020857729,3.18992,3134.9,3134.4,3.94193]
[1732020858041,6.37974,3135.0,3134.4,3.94193]
[1732020858224,3.18987,3135.0,3134.5,3.19027]
[1732020858599,3.18972,3135.1,3134.5,3.19027]
[1732020859234,3.18972,3135.1,3134.6,3.98148]
[1732020859411,3.18988,3135.0,3134.6,0.7913]
[1732020859813,3.18986,3135.0,3134.6,0.7913]
[1732020860245,3.19003,3134.8,3134.6,0.7913]
[1732020860950,3.18986,3135.0,3134.6,0.7913]
[1732020861109,3.18992,3134.9,3134.6,0.7913]
[1732020861451,3.18999,3134.8,3134.6,0.7913]
[1732020863115,3.19009,3134.7,3134.6,0.7913]
[1732020863524,3.18999,3134.8,3134.6,0.7913]
[1732020863927,3.19029,3134.6,3134.3,0.7965]
[1732020864333,3.23638692,3134.7,3134.3,0.7965]
[1732020864334,0.04624818,3134.5,3134.3,0.7965]
[1732020864710,3.19025,3134.6,3134.3,0.7965]
[1732020864907,0.04623438,3134.4,3134.3,0.7965]
[1732020865259,3.19037,3134.5,3134.3,0.7965]
[1732020865464,0.7855,3134.9,3134.3,0.7965]
[1732020865465,3.19013,3134.7,3134.3,0.7965]
[1732020865613,0.04623438,3134.4,3134.3,0.7965]
[1732020865807,3.19022,3134.6,3134.3,0.7965]
[1732020866054,0.04623438,3134.4,3134.3,0.7965]
[1732020866212,3.18993,3134.9,3134.4,3.19036]
[1732020866419,3.18993,3134.9,3134.3,0.8219]
[1732020866420,3.18996,3134.9,3134.3,0.8219]
[1732020866809,3.18995,3134.9,3134.3,0.8219]
[1732020867111,6.698925,3134.9,3134.3,4.01235]
[1732020867338,3.18995,3134.9,3134.3,4.01235]
[1732020867864,3.18995,3134.9,3134.4,3.19037]
[1732020868229,3.18995,3134.9,3134.4,3.19034]
[1732020868432,3.18973,3135.1,3134.4,3.19034]
[1732020868740,3.18973,3135.1,3134.5,0.7556]
[1732020869149,3.18979,3135.0,3134.5,0.7556]
[1732020869465,3.18973,3135.1,3134.6,3.19016]
[1732020870336,3.18973,3135.1,3134.7,0.8125]
[1732020872352,3.18962,3135.2,3134.7,4.00259]
[1732020872554,3.18958,3135.2,3134.7,4.00259]
[1732020872760,3.54252516,3135.6,3134.7,0.8125]
[1732020873068,6.37931,3135.2,3134.7,4.00259]
[1732020873284,6.37933,3135.2,3134.7,4.00259]
[1732020873569,3.18965,3135.2,3134.7,4.00259]
[1732020874872,3.18944,3135.4,3134.7,0.8125]
[1732020875036,3.18944,3135.4,3134.9,0.7959]
[1732020875236,3.18954,3135.3,3134.9,0.7959]
[1732020875674,3.18975,3135.1,3134.9,0.7959]
[1732020875973,3.19005,3134.8,3134.4,0.7635]
[1732020876129,3.1901,3134.7,3134.4,0.7635]
[1732020876682,3.19005,3134.8,3134.4,0.7635]
[1732020877258,3.18984,3135.0,3134.4,0.7635]
[1732020877454,3.18984,3135.0,3134.6,0.7787]
[1732020877655,4.50843404,3135.2,3134.6,4.365723]
[1732020877858,4.50843404,3135.2,3134.6,3.96883]
[1732020878168,0.09716706,3135.9,3134.6,0.7787]
[1732020878377,3.18995,3134.9,3134.6,0.7787]
[1732020879257,0.04630118,3134.8,3134.6,0.7787]
[1732020880904,3.23634118,3134.8,3134.6,0.7787]
[1732020881690,0.04630118,3134.8,3134.6,0.7787]
[1732020882099,3.19009,3134.7,3134.6,0.7787]
[1732020882454,3.19009,3134.7,3134.2,0.1415569]
[1732020882455,0.04628738,3134.7,3134.3,3.99829]
[1732020882591,3.23639738,3134.7,3134.3,0.8078]
[1732020882789,3.19011,3134.7,3134.3,0.8078]
[1732020883011,0.04626988,3134.6,3134.3,0.8078]
[1732020883416,3.23647988,3134.6,3134.3,0.8078]
[1732020883641,3.19021,3134.6,3134.3,0.8078]
[1732020883843,0.04625608,3134.5,3134.3,0.8078]
[1732020885046,0.04625608,3134.5,3134.3,3.99825]
[1732020885212,0.04625608,3134.5,3134.3,4.41224469]
[1732020885403,3.19002,3134.8,3134.3,4.41224469]
[1732020885605,0.04624228,3134.4,3134.3,4.41224469]
[1732020885858,3.19002,3134.8,3134.3,4.41224469]
[1732020886018,0.04624228,3134.4,3134.3,4.93574469]
[1732020886222,3.18983,3135.0,3134.5,3.19026]
[1732020886419,3.18991,3134.9,3134.4,0.7813]
[1732020886745,0.04631127,3134.9,3134.5,3.19028]
[1732020886950,0.04631127,3134.9,3134.4,1.24762569]
[1732020887167,3.18999,3134.8,3134.4,0.7813]
[1732020887341,3.19016,3134.7,3134.2,0.9724569]
[1732020887803,0.04626988,3134.6,3134.2,0.9724569]
[1732020888006,0.04626988,3134.6,3134.2,1.38876559]
[1732020888219,3.23646988,3134.6,3134.2,0.9724569]
[1732020888429,3.1903,3134.5,3134.2,0.9724569]
[1732020888636,3.23646988,3134.6,3134.2,0.9724569]
[1732020888847,0.04624228,3134.4,3134.2,0.9724569]
[1732020889006,3.1902,3134.6,3134.2,0.9724569]
[1732020889208,0.04622848,3134.3,3134.2,0.9724569]
[1732020889412,3.1902,3134.6,3134.2,0.9724569]
[1732020889610,0.04622848,3134.3,3134.2,0.1415569]
[1732020889923,3.23672848,3134.3,3134.2,0.1415569]
[1732020891571,4.64131252,3134.3,3134.2,0.1415569]
[1732020894872,0.04622848,3134.3,3134.2,0.1415569]
[1732020895430,1.36501252,3134.3,3134.2,0.1415569]
[1732020895627,4.55551252,3134.3,3134.2,0.1415569]
[1732020896632,5.33010377,3134.3,3134.2,0.1415569]
[1732020897986,5.41590377,3134.3,3134.2,0.1415569]
[1732020901725,3.19173,3133.1,3132.5,3.19228]
[1732020901894,3.19173,3133.1,3132.6,0.7778]
[1732020902086,0.04594436,3133.0,3132.6,0.7778]
[1732020902388,3.23786436,3133.0,3132.6,0.7778]
[1732020902589,3.23786436,3133.0,3132.5,0.319228]
[1732020902770,0.04594436,3133.0,3132.6,0.7778]
[1732020902976,3.23782436,3133.0,3132.6,0.7778]
[1732020903547,3.19204,3132.8,3132.6,0.7778]
[1732020903891,3.23782436,3133.0,3132.5,3.96472]
[1732020904093,0.04588282,3132.7,3132.5,0.7724]
[1732020904243,3.19166,3133.2,3132.6,3.19218]
[1732020904445,3.19166,3133.2,3132.7,3.96453]
[1732020905189,0.0858,3133.6,3132.9,3.19183]
[1732020905396,0.0858,3133.6,3132.7,0.7724]
[1732020905397,3.19175,3133.1,3132.7,0.7724]
[1732020906302,3.1917,3133.2,3132.7,0.7724]
[1732020906595,3.09899296,3133.5,3132.7,0.7724]
[1732020906795,3.19191,3133.0,3132.7,0.7724]
[1732020907655,3.19194,3132.9,3132.7,0.7724]
[1732020907868,3.19191,3133.0,3132.7,0.7724]
[1732020908782,3.19164,3133.2,3132.7,0.7724]
[1732020909007,0.04584594,3132.9,3132.7,0.7724]
[1732020909168,3.19164,3133.2,3132.7,3.96453]
[1732020909372,0.04583743,3132.8,3132.7,4.680197]
[1732020909568,3.19164,3133.2,3132.7,4.680197]
[1732020909770,0.04583743,3132.8,3132.7,4.680197]
[1732020910086,3.19168,3133.2,3132.7,4.680197]
[1732020910284,0.04587887,3133.1,3132.9,3.19192]
[1732020910596,3.19113,3133.7,3133.2,3.19162]
[1732020910800,3.19092,3133.9,3133.3,3.19146]
[1732020910957,3.91434533,3134.1,3133.5,0.8321]
[1732020911157,3.19083,3134.0,3133.5,0.8321]
[1732020911560,3.19074,3134.1,3133.6,3.19117]
[1732020911900,3.19074,3134.1,3133.6,3.593497]
[1732020912101,3.1905,3134.3,3133.8,3.19095]
[1732020912304,3.19012,3134.7,3134.1,3.1906]
[1732020912504,3.19062,3134.2,3134.0,0.8226]
[1732020912709,3.19052,3134.3,3133.6,3.0]
[1732020912857,3.19052,3134.3,3133.7,3.19105]
[1732020913068,3.19039,3134.5,3133.9,3.19084]
[1732020913268,3.19039,3134.5,3134.0,0.8257]
[1732020913668,3.19041,3134.4,3134.0,0.8257]
[1732020914698,6.38089,3134.4,3134.0,0.8257]
[1732020914909,3.19051,3134.3,3134.0,0.8257]
[1732020915207,3.19036,3134.5,3134.0,0.8257]
[1732020915501,3.19036,3134.5,3134.0,4.0165]
[1732020915702,6.37484296,3134.8,3134.1,3.1907]
[1732020915906,6.28904296,3134.8,3134.1,3.1907]
[1732020916406,3.19023,3134.6,3134.1,3.1907]
[1732020916581,6.28904296,3134.8,3134.1,3.911355]
[1732020916903,6.28904296,3134.8,3134.2,3.19054]
[1732020917569,6.28904296,3134.8,3134.3,0.7816]
[1732020918113,3.1901,3134.7,3134.3,0.7816]
[1732020918470,3.1904,3134.4,3134.3,0.7816]
[1732020918892,3.1903,3134.5,3134.3,0.7816]
[1732020919095,6.28929296,3134.5,3134.3,0.7816]
[1732020919280,6.38069,3134.5,3134.3,0.7816]
[1732020919477,3.19051,3134.3,3133.9,0.7863]
[1732020919677,0.0858,3134.6,3133.9,0.7863]
[1732020919993,6.38093,3134.4,3133.9,0.7863]
[1732020920196,3.19046,3134.4,3133.9,0.7863]
[1732020920395,3.19023,3134.6,3134.0,3.19076]
[1732020920597,3.09899296,3135.1,3134.2,0.8077]
[1732020920799,3.19018,3134.7,3134.2,0.8077]
[1732020921000,3.1902,3134.6,3134.2,0.8077]
[1732020921873,3.19009,3134.7,3134.2,0.8077]
[1732020922101,3.19029,3134.6,3134.2,0.8077]
[1732020924070,0.04467692,3134.5,3134.2,0.8077]
[1732020924506,3.19023,3134.6,3134.2,0.8077]
[1732020924682,3.19043,3134.4,3134.2,0.8077]
[1732020924905,0.04464932,3134.3,3134.2,0.8077]
[1732020925098,3.19033,3134.5,3134.2,0.8077]
[1732020925306,0.04466312,3134.4,3134.2,0.8077]
[1732020927014,3.19002,3134.8,3134.2,3.9982]
[1732020927315,3.1902,3134.6,3134.2,0.8077]
[1732020927704,3.09899296,3134.7,3134.2,0.8077]
[1732020927903,3.19002,3134.8,3134.3,3.19049]
[1732020929285,3.19012,3134.7,3134.2,0.8077]
[1732020929831,3.19012,3134.7,3134.2,3.9983]
[1732020930500,3.19002,3134.8,3134.2,3.9983]
[1732020930701,3.19002,3134.8,3134.3,3.19042]
[1732020931002,3.18982,3135.0,3134.4,3.1903]
[1732020931725,3.18982,3135.0,3134.3,3.19042]
[1732020931938,3.18992,3134.9,3134.4,3.19039]
[1732020933312,3.18989,3134.9,3134.3,3.19049]
[1732020933820,3.18996,3134.9,3134.3,3.19049]
[1732020933994,6.37995,3134.9,3134.3,3.19049]
[1732020934200,3.18996,3134.9,3134.3,3.19049]
[1732020934631,6.37992,3134.9,3134.3,3.19049]
[1732020934837,6.37992,3134.9,3134.4,0.7701]
[1732020934838,3.18996,3134.9,3134.4,0.7701]
[1732020935457,3.18996,3134.9,3134.4,3.96044]
[1732020937314,3.81668804,3135.1,3134.5,3.19029]
[1732020937500,7.00643804,3135.1,3134.5,3.1903]
[1732020937700,3.18984,3135.0,3134.5,3.1903]
[1732020937948,3.1899,3134.9,3134.4,0.7701]
[1732020938244,3.09899296,3135.1,3134.4,0.7701]
[1732020938409,3.19021,3134.6,3134.4,0.7701]
[1732020938611,3.19025,3134.6,3134.4,0.7701]
[1732020939003,0.04471496,3134.5,3134.1,3.1907]
[1732020939235,0.04471496,3134.5,3134.2,3.19059]
[1732020939611,3.19019,3134.6,3134.1,0.40008]
[1732020939824,0.0858,3134.8,3134.1,3.74061]
[1732020939825,0.04470116,3134.4,3134.1,3.74061]
[1732020940029,0.04471496,3134.5,3134.1,6.93124]
[1732020940242,0.04468735,3134.3,3134.2,3.964734]
[1732020940542,0.04468735,3134.3,3134.1,3.74061]
[1732020940702,3.19021,3134.6,3134.1,3.74061]
[1732020940899,3.19021,3134.6,3134.1,3.19061]
[1732020941114,0.04471496,3134.5,3134.1,3.19061]
[1732020941523,3.23507496,3134.5,3134.0,4.0009]
[1732020941724,3.19051,3134.3,3134.0,0.8101]
[1732020941954,0.04467355,3134.2,3134.0,0.8101]
[1732020942159,3.19051,3134.3,3134.0,0.8101]
[1732020942323,3.23529355,3134.2,3133.8,0.7513]
[1732020944129,0.04467355,3134.2,3133.8,0.7513]
[1732020944325,3.19041,3134.4,3133.9,3.19086]
[1732020944542,0.04468735,3134.3,3133.9,0.55]
[1732020944876,3.19012,3134.7,3134.1,3.19063]
[1732020945170,0.04472876,3134.6,3134.0,4.01864]
[1732020945374,0.04472876,3134.6,3134.1,3.647514]
[1732020945523,0.04472876,3134.6,3134.3,3.1905]
[1732020945722,3.18996,3134.9,3134.3,0.55]
[1732020945924,3.23475156,3134.8,3134.3,3.74048]
[1732020946130,0.04474156,3134.8,3134.4,3.19039]
[1732020947190,3.23479156,3134.8,3134.3,0.55]
[1732020947489,3.23479156,3134.8,3134.3,3.74041]
[1732020947696,0.04474156,3134.8,3134.4,3.966232]
[1732020948167,0.04472934,3134.7,3134.6,0.7897]
[1732020948367,3.18974,3135.1,3134.6,0.7897]
[1732020948574,3.23456073,3135.0,3134.6,0.7897]
[1732020950750,0.04477073,3135.0,3134.7,4.01463]
[1732020950950,3.18951,3135.3,3134.7,0.8246]
[1732020951167,0.04482476,3135.2,3134.8,3.18998]
[1732020951369,3.18951,3135.3,3134.8,3.18998]
[1732020951602,3.83217238,3135.5,3134.8,3.18998]
[1732020951603,0.04482476,3135.2,3134.8,3.18998]
[1732020951922,0.04482476,3135.2,3135.1,3.95209]
[1732020952049,3.18925,3135.6,3135.1,3.95209]
[1732020952250,0.04482476,3135.2,3135.1,0.7624]
[1732020952451,3.0,3135.6,3135.1,3.95208]
[1732020952689,0.04482476,3135.2,3135.1,3.95208]
[1732020952897,6.18924,3135.6,3135.1,3.95208]
[1732020953097,0.04482476,3135.2,3135.1,0.7624]
[1732020953250,3.18941,3135.4,3135.1,0.7624]
[1732020953457,0.04482476,3135.2,3134.9,3.94387]
[1732020953651,3.18939,3135.4,3134.9,0.754]
[1732020953898,0.04481096,3135.1,3134.9,0.754]
[1732020954197,0.04479717,3135.0,3134.9,0.754]
[1732020954706,3.18979,3135.0,3134.9,0.754]
[1732020954858,0.36380416,3135.0,3134.6,0.8194]
[1732020955063,0.04482516,3135.0,3134.6,0.8194]
[1732020955259,0.04482516,3135.0,3134.3,0.7643]
[1732020955260,3.19039,3134.5,3134.3,0.7643]
[1732020955500,3.1904,3134.4,3134.0,0.7643]
[1732020955697,0.0447603,3134.4,3134.0,0.7643]
[1732020956408,0.0447603,3134.4,3134.3,0.8038]
[1732020956701,3.19,3134.8,3134.3,7.584232]
[1732020957005,3.18979,3135.0,3134.4,3.19035]
[1732020957207,0.04474993,3134.7,3134.6,4.50831]
[1732020957361,3.18975,3135.1,3134.6,4.50831]
[1732020957561,0.04478023,3135.0,3134.6,4.50831]
[1732020957772,0.04478023,3135.0,3134.6,5.278169]
[1732020958386,0.04478023,3135.0,3134.7,3.19004]
[1732020958723,3.18946,3135.4,3134.8,0.7749]
[1732020958919,3.18929,3135.5,3135.0,3.18976]
[1732020959125,3.18889,3135.9,3135.3,0.7777]
[1732020959323,3.18917,3135.7,3135.3,0.7777]
[1732020959821,3.18893,3135.9,3135.3,0.7777]
[1732020960626,3.18904,3135.8,3135.3,3.96718]
[1732020961803,3.18914,3135.7,3135.3,0.7777]
[1732020962120,3.18914,3135.7,3135.3,1.174432]
[1732020962277,3.18844,3136.4,3135.6,3.18912]
[1732020962478,0.0858,3136.5,3135.8,3.18896]
[1732020962715,3.18822,3136.6,3135.8,3.18896]
[1732020963218,3.27394,3136.7,3136.0,3.18875]
[1732020963419,3.18818,3136.6,3136.1,0.7746]
[1732020963773,3.18801,3136.8,3136.1,3.96321]
[1732020964024,0.0858,3136.9,3136.3,3.18839]
[1732020964025,0.64665509,3136.9,3136.3,3.18839]
[1732020964186,3.83451509,3136.9,3136.3,0.8258]
[1732020964522,3.18827,3136.5,3136.3,0.8258]
[1732020964682,3.18827,3136.5,3136.1,0.55]
[1732020964877,3.18807,3136.7,3136.0,3.002845]
[1732020965106,6.37622,3136.7,3136.0,6.191555]
[1732020965307,3.18807,3136.7,3136.0,3.002845]
[1732020965514,3.18807,3136.7,3136.1,3.18861]
[1732020965680,3.18807,3136.7,3136.2,3.18855]
[1732020965884,7.02249509,3136.9,3136.2,3.18855]
[1732020966207,3.1877,3137.1,3136.0,0.3002845]
[1732020966382,6.37544,3137.1,3136.4,3.18831]
[1732020966581,3.18797,3136.8,3136.3,3.18839]
[1732020966891,3.18806,3136.7,3136.1,3.18861]
[1732020967230,3.18806,3136.7,3136.2,3.18856]
[1732020967537,3.18789,3136.9,3136.3,3.18844]
[1732020967695,3.86798723,3137.1,3136.5,0.7705]
[1732020967880,6.37503,3137.3,3136.6,3.18816]
[1732020968080,6.37504,3137.3,3136.6,3.18816]
[1732020968322,3.907134,3137.3,3136.6,3.18816]
[1732020968901,0.04236092,3137.2,3136.6,3.18816]
[1732020969294,0.04236092,3137.2,3136.7,3.18803]
[1732020969496,0.04236092,3137.2,3136.7,6.37606]
[1732020969803,0.04236092,3137.2,3136.7,3.18803]
[1732020970125,3.22992092,3137.2,3136.7,3.18803]
[1732020970336,0.04236092,3137.2,3136.6,0.8274]
[1732020970513,0.04236092,3137.2,3136.7,0.8274]
[1732020970728,3.1871,3137.7,3137.2,0.8274]
[1732020970884,3.97256,3138.1,3137.3,3.18739]
[1732020971199,3.18675,3138.0,3137.4,3.18729]
[1732020971535,0.04109747,3137.9,3137.4,3.18729]
[1732020972409,0.04109747,3137.9,3137.2,0.8274]
[1732020972627,3.18696,3137.8,3137.2,4.01486]
[1732020972829,3.2280437,3137.8,3137.2,4.01486]
[1732020972979,3.18721,3137.6,3137.2,0.8274]
[1732020973395,0.04104238,3137.5,3137.2,4.01494]
[1732020973654,3.50990437,3137.7,3137.2,0.8274]
[1732020973957,0.0410286,3137.4,3137.2,0.8274]
[1732020974112,3.50990437,3137.7,3137.2,0.8274]
[1732020974320,3.22852483,3137.3,3136.9,0.8002]
[1732020974493,3.18751,3137.3,3136.9,0.8002]
[1732020974698,3.18771,3137.1,3136.6,0.8002]
[1732020974939,3.18777,3137.0,3136.6,0.8002]
[1732020975140,3.22877649,3137.0,3136.6,0.8002]
[1732020975637,0.04100649,3137.0,3136.6,0.8002]
[1732020976314,3.18822,3136.6,3136.0,0.768]
[1732020976500,3.18826,3136.5,3136.0,0.768]
[1732020976696,3.22916937,3136.5,3136.0,3.95675]
[1732020977063,0.04090937,3136.5,3136.2,3.18851]
[1732020977198,3.98677,3137.0,3136.5,0.768]
[1732020977405,0.04093629,3136.9,3136.5,0.768]
[1732020977848,0.04093629,3136.9,3136.5,3.95625]
[1732020978345,0.04093629,3136.9,3136.5,0.768]
[1732020978637,3.22879629,3136.9,3136.5,0.768]
[1732020979050,0.04093629,3136.9,3136.5,0.768]
[1732020979202,3.22879629,3136.9,3136.5,0.768]
[1732020979398,3.55166692,3136.9,3136.5,0.768]
[1732020979752,3.18821,3136.6,3136.1,0.7674]
[1732020979906,3.18834,3136.5,3136.1,0.7674]
[1732020980098,3.22920416,3136.5,3136.1,0.7674]
[1732020980302,3.18837,3136.4,3135.9,3.78]
[1732020980615,0.04085411,3136.4,3135.9,6.96886]